lending/lending_fUSD_20240411
["ID","MTS","AMOUNT","RATE_DAILY","PERIOD"]
[322131869,1712833834087,-173.041119,0.00020999,4]
[322131870,1712833834098,-173.041119,0.00020999,4]
[322131871,1712833834107,-173.041119,0.00020999,4]
[322131872,1712833834117,-1762.95138587,0.00020999,2]
[322131873,1712833834126,-157.041119,0.00020999,4]
[322131874,1712833834135,-173.041119,0.00020999,4]
[322131875,1712833834145,-216.31472644,0.00020999,2]
[322131876,1712833834154,-500.0,0.00020999,2]
[322131877,1712833834163,-500.0,0.00020999,2]
[322131878,1712833834173,-500.0,0.00020999,2]
[322131879,1712833834183,-500.0,0.00020999,2]
[322131880,1712833834192,-210.96946069,0.00020999,2]
[322131881,1712833834202,-148471.1564368,0.00021,2]
[322131882,1712833834212,-430.10766442,0.00021,2]
[322131883,1712833834222,-785981.80867963,0.00021,2]
[322131884,1712833834235,-4032.29105005,0.00021,2]
[322131885,1712833834256,-392.47674322,0.00021,2]
[322131886,1712833834268,-17619.75,0.00021,2]
[322131887,1712833834280,-536.58843437,0.00021,2]
[322131888,1712833834313,-14829.87544267,0.00021,2]
[322131907,1712833838818,-516.89943806,0.00020999,2]
[322131909,1712833838830,-805.31410135,0.00020999,2]
[322131911,1712833838839,-180.32118499,0.00021,2]
[322131913,1712833838849,-68556.14415846,0.00021,2]
[322131919,1712833838891,-5625.96,0.00021,2]
[322131921,1712833838902,-33236.777304,0.00021,2]
[322131924,1712833838914,-9880698.50062726,0.00021,2]
[322131926,1712833838923,-408.08,0.00021,2]
[322131927,1712833838933,-217.78,0.00021,2]
[322131929,1712833838942,-501580.22621426,0.00021,2]
[322131932,1712833838952,-550.0,0.00021,3]
[322131934,1712833838963,-412.8629,0.0002125,2]
[322131935,1712833838972,-1251.95220192,0.00021315,2]
[322131937,1712833838982,-18539.51,0.00021336,2]
[322131940,1712833838991,-569.0,0.000218,2]
[322131941,1712833839006,-412.86289,0.0002188,2]
[322131943,1712833839018,-630.08,0.00021885,2]
[322131945,1712833839027,-3120.0,0.000219,2]
[322131947,1712833839036,-250.0,0.00021918,2]
[322131949,1712833839046,-250.0,0.00021918,2]
[322131951,1712833839056,-2968.20134927,0.00021983,2]
[322131953,1712833839065,-783.81607988,0.00022,2]
[322131956,1712833839075,-188.92,0.00022056,2]
[322131958,1712833839084,-1847.19,0.00022202,2]
[322131959,1712833839094,-462.4,0.00022432,2]
[322131962,1712833839104,-300.17,0.00022451,2]
[322131964,1712833839114,-412.8629,0.0002251,2]
[322131966,1712833839123,-151.77830746,0.00022688,2]
[322131968,1712833839132,-1268.9260497,0.00022957,2]
[322131970,1712833839141,-5143.30154841,0.00022961,2]
[322131972,1712833839150,-307.11461416,0.00023,2]
[322131974,1712833839159,-600.0,0.00023,3]
[322131976,1712833839168,-412.86289,0.0002313,2]
[322131978,1712833839177,-412.8629,0.0002376,2]
[322131980,1712833839186,-571.0,0.000239,2]
[322131982,1712833839195,-630.08,0.00024317,2]
[322131984,1712833839205,-151.77830746,0.00024475,2]
[322131986,1712833839216,-296.24323294,0.0002469,5]
[322131987,1712833839226,-300.17,0.00024714,2]
[322131988,1712833839235,-2014.28390047,0.000248,2]
[322131989,1712833839244,-408.08,0.000248,2]
[322131990,1712833839253,-217.78,0.000248,2]
[322131991,1712833839263,-245000.0,0.000249,2]
[322131992,1712833839272,-462.4,0.00024925,2]
[322131993,1712833839281,-1847.19,0.00024942,2]
[322131994,1712833839291,-650.0,0.00025,3]
[322131995,1712833839301,-1268.9260497,0.00025018,2]
[322131997,1712833839310,-5143.30154841,0.00025025,2]
[322131999,1712833839319,-1938.60572945,0.00026,2]
[322132001,1712833839330,-151.77830746,0.00026263,2]
[322132003,1712833839339,-188.92,0.00026736,2]
[322132005,1712833839348,-630.08,0.00026748,2]
[322132007,1712833839357,-300.17,0.00026978,2]
[322132009,1712833839366,-714.86887525,0.00026998,2]
[322132011,1712833839375,-700.0,0.00027,3]
[322132012,1712833839384,-1268.9260497,0.0002708,2]
[322132014,1712833839394,-5143.30154841,0.0002709,2]
[322132016,1712833839403,-166.41,0.00027232,2]
[322132018,1712833839412,-185.12,0.00027397,2]
[322132020,1712833839421,-199.69,0.00027397,2]
[322132022,1712833839431,-156.14,0.00027397,2]
[322132025,1712833839440,-462.4,0.00027417,2]
[322132027,1712833839449,-1000.0,0.000277,2]
[322132029,1712833839463,-3520.45035266,0.00027726,2]
[322132031,1712833839473,-1000.0,0.000279,2]
[322132033,1712833839482,-408.08,0.000279,2]
[322132035,1712833839491,-217.78,0.000279,2]
[322132037,1712833839500,-195.38607763,0.00027974,2]
[322132039,1712833839511,-151.77830746,0.00028051,2]
[322132041,1712833839522,-1000.0,0.000285,2]
[322132043,1712833839532,-1000.0,0.000285,2]
[322132045,1712833839541,-1000.0,0.000285,2]
[322132047,1712833839551,-1000.0,0.000285,2]
[322132049,1712833839560,-1000.0,0.000285,2]
[322132051,1712833839569,-750.0,0.00029,3]
[322132053,1712833839578,-2463.0,0.00029029,2]
[322132055,1712833839588,-5709.0,0.00029029,2]
[322132057,1712833839597,-2529.40482398,0.00029029,2]
[322132060,1712833839610,-25854.59817602,0.00029029,2]
[322132062,1712833839620,-1313.0,0.00029029,2]
[322132064,1712833839629,-3778.824,0.00029029,2]
[322132066,1712833839637,-430.689,0.00029029,2]
[322132068,1712833839647,-1268.9260497,0.00029141,2]
[322132070,1712833839656,-5143.30154841,0.00029154,2]
[322132072,1712833839665,-630.08,0.0002918,2]
[322132074,1712833839677,-448.813,0.00029183,2]
[322132076,1712833839687,-1295.778,0.00029183,2]
[322132078,1712833839696,-246.168,0.00029183,2]
[322132080,1712833839705,-3110.524,0.00029183,2]
[322132082,1712833839715,-411.428,0.00029183,2]
[322132084,1712833839724,-153.435,0.00029183,2]
[322132086,1712833839733,-1141.875,0.00029183,2]
[322132088,1712833839746,-1517.035,0.00029183,2]
[322132090,1712833839755,-1306.12809634,0.00029183,2]
[322132092,1712833839767,-1169.51790366,0.00029183,2]
[322132094,1712833839776,-1646.803,0.00029183,2]
[322132096,1712833839785,-153.375,0.00029183,2]
[322132098,1712833839795,-403.245,0.00029183,2]
[322132100,1712833839803,-214.0,0.00029183,2]
[322132102,1712833839813,-300.17,0.00029242,2]
[322132104,1712833839822,-562.74532621,0.00029398,2]
[322132106,1712833839831,-441.09329125,0.000295,3]
[322132108,1712833839841,-200.0,0.00029759,2]
[322132110,1712833839850,-1000.0,0.00029759,8]
[322132112,1712833839859,-500.0,0.00029759,2]
[322132114,1712833839869,-500.0,0.00029759,2]
[322132116,1712833839878,-200.0,0.0002976,2]
[322132118,1712833839887,-1000.0,0.0002976,8]
[322132120,1712833839895,-1000.0,0.0002976,8]
[322132122,1712833839905,-200.0,0.0002976,7]
[322132124,1712833839915,-500.0,0.0002976,2]
[322132127,1712833839926,-417.390342,0.0002976,2]
[322132129,1712833839935,-500.0,0.0002976,2]
[322132131,1712833839948,-500.0,0.0002976,2]
[322132133,1712833839957,-151.77830746,0.00029838,2]
[322132135,1712833839967,-462.4,0.0002991,2]
[322132137,1712833839976,-241.49838889,0.00029998,2]
[322132139,1712833839985,-1136.78883775,0.00029998,2]
[322132141,1712833839994,-27763.12719949,0.0003,3]
[322132143,1712833840009,-14115.55472,0.0003,3]
[322132145,1712833840021,-1087.61328468,0.0003,3]
[322132147,1712833840032,-500.0,0.0003,3]
[322132198,1712833840514,-309.23,0.0002099,2]
[322132199,1712833840525,-309.23,0.0002099,2]
[322132200,1712833840534,-309.23,0.0002099,2]
[322132201,1712833840543,-309.23,0.0002099,2]
[322132202,1712833840552,-309.23,0.0002099,2]
[322132203,1712833840561,-309.23,0.0002099,2]
[322132204,1712833840571,-775.77409809,0.0003,3]
[322132205,1712833840612,-2258.12544579,0.0003,3]
[322132206,1712833840636,-300.0,0.0002099,2]
[322132207,1712833840656,-207.62054545,0.000209,2]
[322132208,1712833840665,-9.23,0.0002099,2]
[322132209,1712833840674,-783.22384813,0.0003,3]
[322132210,1712833840686,-3173.935,0.0003,3]
[322132211,1712833840715,-3447.0,0.0003,3]
[322132217,1712833843083,-309.23,0.0002099,2]
[322132218,1712833843097,-309.23,0.0002099,2]
[322132219,1712833843106,-309.23,0.0002099,2]
[322132220,1712833843115,-262.76495746,0.00020999,2]
[322132221,1712833843125,-984.48080839,0.00020999,2]
[322132222,1712833843156,-7.17934616,0.00020999,2]
[322132223,1712833843166,-6151.90425279,0.0003,3]
[322132224,1712833843180,-3904.01622482,0.0003,3]
[322132225,1712833843191,-2350.09499199,0.0003,3]
[322132226,1712833843203,-1382.83031801,0.0003,3]
[322132227,1712833843292,-1338.34643226,0.0003,3]
[322132228,1712833843459,-686.340486,0.0003,3]
[322132234,1712833844459,-1006.0771304,0.0003,3]
[322132264,1712833846190,-3563.80000002,0.00027263,2]
[322132266,1712833846200,-207.62054544,0.00027924,2]
[322132268,1712833846209,-17775.24025774,0.0003,3]
[322132270,1712833846221,-1302.18464858,0.0003,3]
[322132275,1712833846259,-2343.36758848,0.0003,3]
[322132277,1712833846271,-70542.0,0.0003,3]
[322132280,1712833846282,-3596.38231992,0.0003,3]
[322132286,1712833846368,-743.74511592,0.00029997,2]
[322132288,1712833846377,-1647.09143245,0.0003,3]
[322132297,1712833846454,-1340.94782771,0.0003,3]
[322132299,1712833846463,-5669.53624761,0.0003,2]
[322132301,1712833846473,-19313.27880295,0.0003,4]
[322132303,1712833846483,-405.62390649,0.0003,4]
[322132305,1712833846494,-23724.57526363,0.0003,4]
[322132306,1712833846504,-6940.19935947,0.0003,2]
[322132307,1712833846513,-150.0,0.0003,2]
[322132308,1712833846523,-40105.903402,0.00030007,2]
[322132309,1712833846532,-3622.0877481,0.00030007,2]
[322132310,1712833846541,-2358.1334553,0.00030007,2]
[322132311,1712833846551,-582.0,0.00030028,2]
[322132312,1712833846560,-520.0,0.00030028,2]
[322132313,1712833846569,-7003.29431075,0.00030069,30]
[322132314,1712833846579,-5000.0,0.000301,4]
[322132315,1712833846587,-490.78981057,0.00031,4]
[322132316,1712833846596,-800.0,0.00031,3]
[322132317,1712833846605,-5000.0,0.00031007,2]
[322132318,1712833846615,-5000.0,0.00031017,2]
[322132319,1712833846624,-5000.0,0.00031061,2]
[322132320,1712833846633,-5000.0,0.00031076,2]
[322132321,1712833846643,-5000.0,0.00031089,2]
[322132322,1712833846652,-5000.0,0.00031125,2]
[322132323,1712833846661,-2502.7,0.00031128,2]
[322132324,1712833846670,-3119.02,0.0003114,2]
[322132325,1712833846679,-5000.0,0.00031143,2]
[322132326,1712833846689,-5000.0,0.00031147,2]
[322132327,1712833846698,-157.041119,0.00031148,19]
[322132328,1712833846707,-2579.33,0.00031161,2]
[322132329,1712833846716,-5000.0,0.00031165,2]
[322132330,1712833846725,-2510.89,0.00031168,2]
[322132331,1712833846734,-25000.0,0.00031174,2]
[322132332,1712833846744,-1268.9260497,0.00031202,2]
[322132333,1712833846753,-643.60375618,0.00031213,2]
[322132334,1712833895410,227.46,0.0001763,2]
[322132356,1712835032342,-662.56219098,0.00019834,2]
[322132357,1712835032352,-155.0,0.00019835,2]
[322132358,1712835032362,-584.30398888,0.00019835,2]
[322132359,1712835032375,-1591.14516619,0.00019835,2]
[322132360,1712835032385,-278.54949214,0.00019836,2]
[322132361,1712835032394,-523.01457853,0.00019836,2]
[322132362,1712835032404,-5739.29076472,0.00019837,2]
[322132363,1712835032439,-4809.77205821,0.00019837,2]
[322132364,1712835032448,-150.0,0.00020895,2]
[322132365,1712835032457,-4018.9749,0.00020896,2]
[322132366,1712835032467,-12372.0155,0.00020896,2]
[322132367,1712835032476,-3640.9473,0.00020896,2]
[322132368,1712835032486,-537.2129,0.00020896,2]
[322132369,1712835032496,-500.0,0.00020896,2]
[322132370,1712835032506,-2463.8427,0.00020896,2]
[322132371,1712835032515,-1000.0,0.00020896,2]
[322132372,1712835032525,-715.05532847,0.00021,2]
[322132373,1712835032534,-977.02,0.00021,2]
[322132374,1712835032544,-2808.0,0.000219,2]
[322132375,1712835032553,-999.99,0.000219,2]
[322132376,1712835032562,-1339.79,0.00022,2]
[322132377,1712835032572,-150.99,0.00022,2]
[322132378,1712835032582,-5329.69,0.00022,2]
[322132379,1712835032591,-783.81607988,0.00022156,2]
[322132380,1712835032600,-499.99,0.00022157,2]
[322132381,1712835032610,-1111.03,0.00022157,2]
[322132382,1712835032619,-210.0,0.00022984,2]
[322132383,1712835032629,-307.11461416,0.00023,2]
[322132384,1712835032638,-231.09,0.0002577,2]
[322132385,1712835032648,-1394.41496588,0.00027262,2]
[322132386,1712835032657,-202.93,0.00027397,2]
[322132387,1712835032666,-231.52,0.00027572,2]
[322132388,1712835032676,-1500.0,0.00027744,2]
[322132390,1712835032685,-818.05,0.00027777,2]
[322132392,1712835032694,-23890.0,0.0002784,2]
[322132394,1712835032704,-250.0,0.00027907,2]
[322132396,1712835032713,-3696.844,0.00027907,2]
[322132398,1712835032723,-154.72,0.00027923,2]
[322132400,1712835032732,-250.0,0.00027924,2]
[322132403,1712835032741,-166.42,0.00027925,2]
[322132405,1712835032750,-154.72,0.00027932,2]
[322132406,1712835032760,-154.72,0.00027942,2]
[322132407,1712835032769,-1126.64,0.00027947,2]
[322132408,1712835032778,-154.72,0.00027951,2]
[322132409,1712835032788,-6168.825,0.00027951,2]
[322132410,1712835032798,-154.72,0.0002796,2]
[322132411,1712835032809,-154.72,0.0002797,2]
[322132412,1712835032818,-154.72,0.00027979,2]
[322132413,1712835032828,-154.72,0.00027988,2]
[322132414,1712835032838,-154.72,0.00027998,2]
[322132415,1712835032848,-154.72,0.00028007,2]
[322132416,1712835032857,-154.72,0.00028016,2]
[322132417,1712835032867,-154.72,0.00028026,2]
[322132418,1712835032876,-211.83,0.00028029,2]
[322132419,1712835032885,-231.09,0.00028034,2]
[322132420,1712835032895,-154.72,0.00028035,2]
[322132421,1712835032904,-154.72,0.00028044,2]
[322132422,1712835032913,-154.72,0.00028054,2]
[322132423,1712835032922,-154.72,0.00028063,2]
[322132424,1712835032932,-211.83,0.00028105,2]
[322132425,1712835032941,-211.83,0.00028182,2]
[322132426,1712835032950,-211.83,0.00028259,2]
[322132427,1712835032959,-211.83,0.00028336,2]
[322132428,1712835032970,-211.83,0.00028413,2]
[322132429,1712835032980,-211.83,0.0002849,2]
[322132430,1712835032989,-211.83,0.00028567,2]
[322132431,1712835032999,-211.83,0.00028644,2]
[322132432,1712835033008,-211.83,0.00028721,2]
[322132433,1712835033018,-1097.7,0.00028747,10]
[322132434,1712835033027,-1317.24,0.00028757,10]
[322132435,1712835033036,-1000.0,0.00028767,2]
[322132436,1712835033045,-211.83,0.00028797,2]
[322132437,1712835033054,-211.83,0.00028874,2]
[322132438,1712835033063,-211.83,0.00028951,2]
[322132439,1712835033073,-211.83,0.00029028,2]
[322132440,1712835033082,-211.83,0.00029105,2]
[322132441,1712835033092,-211.83,0.00029182,2]
[322132442,1712835033101,-211.83,0.00029259,2]
[322132443,1712835033111,-7110.2058,0.00029327,2]
[322132444,1712835033120,-211.83,0.00029336,2]
[322132445,1712835033129,-211.83,0.00029412,2]
[322132446,1712835033138,-211.83,0.00029489,2]
[322132447,1712835033148,-236.21588443,0.00029997,2]
[322132448,1712835033157,-9841.95197701,0.00029997,7]
[322132449,1712835033166,-663.07165144,0.00029999,2]
[322132450,1712835033175,-405.88283839,0.0003,4]
[322132451,1712835033184,-5669.53624761,0.0003,2]
[322132452,1712835033193,-5000.0,0.00030136,4]
[322132453,1712835033202,-576.0,0.00030137,2]
[322132454,1712835033211,-522.0,0.00030137,2]
[322132455,1712835033220,-167.04112,0.00030148,18]
[322132456,1712835033229,-5713.0,0.00030204,2]
[322132457,1712835033238,-2529.404,0.00030204,2]
[322132458,1712835033247,-2463.0,0.00030204,2]
[322132459,1712835033256,-231.09,0.00030297,2]
[322132460,1712835033266,-200.0,0.00030362,7]
[322132461,1712835033274,-1126.64,0.00030686,2]
[322132462,1712835033284,-1000.0,0.000307,2]
[322132463,1712835033292,-1883.68144438,0.00030863,2]
[322132464,1712835033302,-1000.0,0.00030962,8]
[322132465,1712835033311,-500.0,0.00030962,2]
[322132466,1712835033326,-200.0,0.00030962,2]
[322132467,1712835033337,-200.0,0.00030963,2]
[322132468,1712835033347,-1000.0,0.00030963,8]
[322132469,1712835033356,-500.0,0.00030963,2]
[322132470,1712835033366,-500.0,0.00030963,2]
[322132471,1712835033376,-500.0,0.00030963,2]
[322132472,1712835033385,-200.0,0.00030963,2]
[322132473,1712835033395,-490.78981057,0.00031,4]
[322132474,1712835033404,-2500.0,0.00031049,2]
[322132475,1712835033413,-2510.9,0.00031056,2]
[322132476,1712835033423,-322.75579142,0.000311,2]
[322132477,1712835033432,-717.1632,0.00031113,2]
[322132478,1712835033442,-223.01581399,0.00031129,4]
[322132479,1712835033453,-313.87787105,0.0003113,4]
[322132480,1712835033465,-276075.1381,0.00031131,2]
[322132481,1712835033474,-157.04112,0.00031148,19]
[322132482,1712835033483,-5000.0,0.00031168,2]
[322132483,1712835033492,-150.0,0.000312,2]
[322132484,1712835033501,-177.46028583,0.00031206,2]
[322132485,1712835033511,-2781.4815945,0.00031208,2]
[322132486,1712835033520,-846.8925505,0.00031208,2]
[322132487,1712835033529,-58357.2229393,0.00031208,2]
[322132488,1712835033538,-5365.7890415,0.00031208,2]
[322132489,1712835033547,-743.74511591,0.00031212,2]
[322132490,1712835033556,-1603.06650925,0.00031213,4]
[322132491,1712835033565,-155.0,0.00031213,2]
[322132492,1712835033574,-594.81513784,0.00031213,2]
[322132493,1712835033584,-224.42298719,0.00031213,4]
[322132494,1712835033593,-2968.27587146,0.00031213,4]
[322132495,1712835033838,-173.61754,0.00031213,2]
[322132496,1712835033859,-217.91923459,0.00031214,4]
[322132497,1712835033869,-159035.6894,0.00031216,2]
[322132498,1712835033878,-10000.0,0.00031229,2]
[322132499,1712835033888,-4448.1807,0.00031231,2]
[322132500,1712835033897,-352.50290022,0.00031265,4]
[322132501,1712835033907,-317.04407063,0.00031265,7]
[322132502,1712835033916,-240.03877466,0.00031265,4]
[322132503,1712835033926,-214.5656,0.00031265,4]
[322132504,1712835033935,-1938.60572945,0.00031268,4]
[322132505,1712835033944,-15398.58,0.00031269,2]
[322132506,1712835033954,-150.0,0.00031273,2]
[322132507,1712835033965,-10000.0,0.00031298,2]
[322132508,1712835033974,-565.0,0.00031316,5]
[322132509,1712835033984,-25000.0,0.00031316,2]
[322132510,1712835033993,-2889.09,0.00031321,2]
[322132511,1712835034003,-5000.0,0.00031331,2]
[322132512,1712835034012,-5000.0,0.00031333,2]
[322132513,1712835034022,-5000.0,0.00031352,2]
[322132514,1712835034031,-213.0,0.00031381,2]
[322132515,1712835034040,-2500.71,0.00031411,2]
[322132516,1712835034050,-25000.0,0.00031412,2]
[322132517,1712835034059,-5000.0,0.00031416,2]
[322132518,1712835034069,-5000.0,0.00031437,2]
[322132519,1712835034079,-2500.71,0.00031447,2]
[322132520,1712835034088,-167.04112,0.00031448,20]
[322132521,1712835034097,-1721.84,0.00031453,2]
[322132522,1712835034106,-7500.0,0.00031468,2]
[322132523,1712835034115,-5000.0,0.00031482,2]
[322132524,1712835034125,-1883.68144432,0.00031502,2]
[322132525,1712835034134,-576.0,0.00031507,2]
[322132526,1712835034144,-522.0,0.00031507,2]
[322132527,1712835034153,-2502.71,0.00031515,2]
[322132528,1712835034162,-1240.66300341,0.00031536,4]
[322132529,1712835034172,-1043.44393154,0.00031536,4]
[322132530,1712835034181,-2501.96,0.00031536,2]
[322132531,1712835034191,-4573.26074924,0.00031538,4]
[322132532,1712835034200,-5000.0,0.00031538,2]
[322132533,1712835034210,-2047.62177569,0.00031566,4]
[322132534,1712835034221,-261.60041953,0.00031566,4]
[322132535,1712835034230,-485.82894591,0.00031566,4]
[322132536,1712835034239,-562.68660118,0.00031566,4]
[322132537,1712835034248,-267.02206528,0.00031566,4]
[322132538,1712835034258,-4716.5472582,0.00031566,4]
[322132539,1712835034267,-10492.00240773,0.00031566,2]
[322132540,1712835034276,-375.85470948,0.00031566,4]
[322132541,1712835034285,-8678.68862287,0.00031566,4]
[322132542,1712835034294,-3070.55960045,0.00031566,4]
[322132543,1712835034303,-255.31367252,0.00031566,4]
[322132544,1712835034313,-155.0,0.00031567,4]
[322132545,1712835034323,-10601.62121023,0.00031567,4]
[322132546,1712835034334,-351.10446512,0.00031567,2]
[322132547,1712835034343,-25000.0,0.00031568,2]
[322132548,1712835034352,-205.92323207,0.00031581,4]
[322132549,1712835034362,-703.92171334,0.00031581,4]
[322132550,1712835034372,-4314.61098704,0.00031581,4]
[322132551,1712835034381,-1443.85403433,0.00031581,2]
[322132552,1712835034390,-6209.85493494,0.00031581,4]
[322132553,1712835034399,-727.50849061,0.00031581,2]
[322132554,1712835034409,-7728.98965993,0.00031581,4]
[322132555,1712835034419,-3692.50343558,0.00031581,4]
[322132556,1712835034428,-25000.0,0.00031583,2]
[322132557,1712835034437,-151.80895465,0.000316,2]
[322132558,1712835034447,-1315.76,0.00031602,2]
[322132559,1712835034456,-1536.44,0.00031607,2]
[322132560,1712835034467,-5000.0,0.00031624,2]
[322132561,1712835034476,-5000.0,0.00031637,2]
[322132562,1712835034485,-13582.25387879,0.00031639,4]
[322132563,1712835034494,-25000.0,0.0003164,2]
[322132564,1712835034503,-4624.9,0.00031655,2]
[322132565,1712835034512,-1000.0,0.000317,2]
[322132566,1712835034521,-10000.0,0.00031711,2]
[322132567,1712835034531,-8206.35,0.00031722,2]
[322132568,1712835034540,-2500.0,0.00031724,2]
[322132569,1712835034549,-10000.0,0.00031738,2]
[322132570,1712835034558,-2501.96,0.00031763,2]
[322132571,1712835034568,-4576.1,0.00031763,2]
[322132572,1712835034578,-5000.0,0.00031764,2]
[322132573,1712835034587,-5000.0,0.00031774,2]
[322132574,1712835034595,-2500.0,0.00031779,2]
[322132575,1712835034605,-10000.0,0.00031789,2]
[322132576,1712835034614,-2500.0,0.00031811,2]
[322132577,1712835034623,-4322.0,0.00031826,2]
[322132578,1712835034632,-5000.0,0.00031845,2]
[322132579,1712835034642,-5000.0,0.00031848,2]
[322132580,1712835034651,-5000.0,0.00031894,2]
[322132581,1712835034662,-5000.0,0.00031926,2]
[322132582,1712835034671,-5000.0,0.00031933,2]
[322132583,1712835034681,-5000.0,0.00031946,2]
[322132584,1712835034691,-25000.0,0.00031964,2]
[322132585,1712835034701,-5000.0,0.00031969,2]
[322132586,1712835034710,-5000.0,0.00031974,2]
[322132587,1712835034722,-5000.0,0.00031991,2]
[322132588,1712835034731,-5000.0,0.00031993,2]
[322132589,1712835034740,-5000.0,0.00031998,2]
[322132590,1712835034749,-5000.0,0.00031998,2]
[322132591,1712835034759,-157.86310401,0.00032,4]
[322132592,1712835034768,-332.1406229,0.00032,4]
[322132593,1712835034777,-1500.25334534,0.00032,3]
[322132594,1712835034787,-92954.39804187,0.00032,5]
[322132595,1712835034798,-1883.68144432,0.00032141,2]
[322132596,1712835034808,-157.041119,0.00032148,20]
[322132597,1712835034817,-1000.0,0.000322,2]
[322132598,1712835034827,-322.75579139,0.00032201,2]
[322132599,1712835034837,-1000.0,0.00032363,2]
[322132600,1712835034846,-7231.86546375,0.000324,2]
[322132601,1712835034856,-167.04112,0.00032448,21]
[322132602,1712835034866,-231.09,0.00032561,2]
[322132603,1712835034876,-188.92,0.00032569,2]
[322132604,1712835034886,-8548.00043275,0.00032578,2]
[322132605,1712835034895,-8548.00043275,0.00032578,2]
[322132606,1712835034905,-1632.95,0.00032603,2]
[322132607,1712835034915,-8548.00043275,0.00032776,2]
[322132608,1712835034924,-3127.16824146,0.00032776,2]
[322132609,1712835034933,-1883.68144432,0.00032779,2]
[322132610,1712835034943,-576.0,0.00032876,2]
[322132611,1712835034952,-522.0,0.00032876,2]
[322132612,1712835034961,-500.0,0.00032876,2]
[322132613,1712835034971,-2000.0,0.00032876,2]
[322132614,1712835034981,-779.92,0.00032876,2]
[322132615,1712835034990,-500.0,0.00032876,2]
[322132616,1712835034999,-500.0,0.00032876,2]
[322132617,1712835035008,-500.0,0.00032876,2]
[322132618,1712835035018,-500.0,0.00032876,2]
[322132619,1712835035027,-500.0,0.00032876,2]
[322132620,1712835035036,-500.0,0.00032876,2]
[322132621,1712835035046,-500.0,0.00032876,2]
[322132622,1712835035055,-500.0,0.00032876,2]
[322132623,1712835035064,-500.0,0.00032876,2]
[322132624,1712835035073,-500.0,0.00032876,2]
[322132625,1712835035082,-572.54,0.00032876,2]
[322132626,1712835035092,-203.41640033,0.00032876,2]
[322132627,1712835035101,-500.0,0.00032876,2]
[322132628,1712835035110,-500.0,0.00032876,2]
[322132629,1712835035119,-500.0,0.00032876,2]
[322132630,1712835035128,-500.0,0.00032876,2]
[322132631,1712835035138,-500.0,0.00032876,2]
[322132632,1712835035148,-500.0,0.00032876,2]
[322132633,1712835035158,-500.0,0.00032876,2]
[322132634,1712835035167,-575.62362154,0.00032876,2]
[322132635,1712835035177,-500.0,0.00032876,2]
[322132636,1712835035186,-673.92,0.00032876,2]
[322132637,1712835035195,-500.0,0.00032876,2]
[322132638,1712835035204,-715.77,0.00032876,2]
[322132639,1712835035214,-666.65,0.00032876,2]
[322132640,1712835035222,-610.11,0.00032876,2]
[322132641,1712835035231,-500.0,0.00032876,2]
[322132642,1712835035241,-500.0,0.00032876,2]
[322132643,1712835035250,-500.0,0.00032876,2]
[322132644,1712835035260,-500.0,0.00032876,2]
[322132645,1712835035269,-517.49657174,0.00032876,2]
[322132646,1712835035279,-696.96,0.00032876,2]
[322132647,1712835035289,-500.0,0.00032876,2]
[322132648,1712835035299,-500.0,0.00032876,2]
[322132649,1712835035310,-500.0,0.00032876,2]
[322132650,1712835035322,-500.0,0.00032876,2]
[322132651,1712835035332,-500.0,0.00032876,2]
[322132652,1712835035342,-500.0,0.00032876,2]